bitfinex/quotes_BTCUSD_20241117
["timestamp","ask_amount","ask_price","bid_price","bid_amount"]
[1731829014333,0.0776,90537.0,90530.0,0.110459]
[1731829014572,0.188052,90537.0,90530.0,0.110459]
[1731829014794,0.110453,90536.0,90531.0,0.00542665]
[1731829015005,0.110453,90536.0,90530.0,0.110459]
[1731829015438,0.110453,90536.0,90532.0,0.00542587]
[1731829015660,0.110453,90536.0,90531.0,0.00542626]
[1731829015892,0.110453,90536.0,90530.0,0.110459]
[1731829016099,0.110453,90536.0,90532.0,0.00542587]
[1731829016308,0.110453,90536.0,90531.0,0.00542626]
[1731829016517,0.0776,90537.0,90530.0,0.110459]
[1731829016731,0.188052,90537.0,90530.0,0.110459]
[1731829016943,0.0776,90537.0,90531.0,0.00542665]
[1731829017132,0.220907,90536.0,90531.0,0.00542665]
[1731829017606,0.220906,90536.0,90523.0,0.023]
[1731829017827,0.110457,90533.0,90526.0,0.110465]
[1731829018041,0.110457,90533.0,90532.0,0.00542587]
[1731829018267,0.110454,90535.0,90527.0,0.110463]
[1731829018559,0.110454,90535.0,90532.0,0.0054247]
[1731829018976,0.0008562,90536.0,90523.0,0.21627169]
[1731829019189,0.110456,90534.0,90533.0,0.00542509]
[1731829019414,0.110456,90534.0,90527.0,0.110463]
[1731829019628,0.0008562,90536.0,90527.0,0.110463]
[1731829019629,0.110457,90533.0,90527.0,0.110463]
[1731829020559,0.0008562,90536.0,90523.0,0.21627169]
[1731829020787,0.0008562,90536.0,90521.0,0.0017124]
[1731829020788,0.045,90535.0,90521.0,0.0017124]
[1731829021094,0.110467,90525.0,90521.0,0.0017124]
[1731829021783,0.220927,90528.0,90521.0,0.0017124]
[1731829022036,0.082,90526.0,90521.0,0.0017124]
[1731829022974,0.082,90526.0,90521.0,0.08592154]
[1731829023205,0.007,90562.0,90521.0,0.08592154]
[1731829023206,0.082,90537.0,90522.0,0.13206255]
[1731829023460,0.082,90537.0,90529.0,0.19466914]
[1731829023700,0.110449,90540.0,90529.0,0.08420914]
[1731829023926,0.05,90541.0,90529.0,0.08420914]
[1731829024150,0.05,90541.0,90531.0,0.110458]
[1731829024151,0.0008562,90536.0,90531.0,0.110458]
[1731829024417,0.0008562,90536.0,90529.0,0.08420914]
[1731829024670,0.0008562,90536.0,90525.0,0.220931]
[1731829024671,0.0008562,90536.0,90535.0,0.19466314]
[1731829024887,0.0008562,90536.0,90535.0,0.2045892]
[1731829026315,0.0008562,90536.0,90535.0,0.19466314]
[1731829027456,0.1033032,90541.0,90535.0,0.19466314]
[1731829027703,0.1033032,90541.0,90535.0,0.2384151]
[1731829028158,0.082,90543.0,90535.0,0.1279611]
[1731829028431,0.082,90543.0,90537.0,0.110451]
[1731829028938,0.082,90543.0,90535.0,0.3488691]
[1731829028939,0.082,90543.0,90539.0,0.110449]
[1731829029178,0.082,90543.0,90538.0,0.00590591]
[1731829029396,0.082,90543.0,90535.0,0.3488691]
[1731829029397,0.08,90548.0,90542.0,0.08420914]
[1731829029623,0.08,90548.0,90543.0,0.00992824]
[1731829029852,0.08,90548.0,90546.0,0.11044]
[1731829030110,0.08,90548.0,90547.0,0.00992824]
[1731829030325,0.08,90548.0,90547.0,0.12626349]
[1731829031043,0.08,90553.0,90547.0,0.01582449]
[1731829031291,0.08,90553.0,90548.0,0.12036524]
[1731829031518,0.08,90553.0,90549.0,0.02580357]
[1731829031783,0.110435,90551.0,90550.0,0.02580357]
[1731829032220,0.110435,90551.0,90550.0,0.03169982]
[1731829032452,0.190433,90553.0,90550.0,0.03169982]
[1731829032885,0.190433,90553.0,90551.0,0.02580357]
[1731829033112,0.08,90553.0,90552.0,0.02580357]
[1731829033564,0.08,90553.0,90552.0,0.03169982]
[1731829034062,0.08,90553.0,90552.0,0.01582449]
[1731829034063,0.190432,90553.0,90552.0,0.01582449]
[1731829034284,0.190432,90553.0,90552.0,0.00992824]
[1731829034970,0.190432,90553.0,90552.0,0.01582449]
[1731829035894,0.08,90553.0,90552.0,0.12036124]
[1731829036112,0.08,90553.0,90552.0,0.00992824]
[1731829036324,0.08,90553.0,90552.0,0.01580121]
[1731829036564,0.08,90553.0,90552.0,0.00991527]
[1731829036777,0.08,90553.0,90552.0,0.01578824]
[1731829038770,0.08,90553.0,90552.0,0.12622124]
[1731829038981,0.08,90553.0,90552.0,0.00991527]
[1731829039210,0.08,90553.0,90552.0,0.0157856]
[1731829039651,0.08,90553.0,90552.0,0.00991527]
[1731829039872,0.08,90553.0,90552.0,0.0157856]
[1731829040780,0.08,90553.0,90552.0,0.00991527]
[1731829041013,0.08,90553.0,90552.0,0.0157856]
[1731829042533,0.072,90553.0,90552.0,0.0157856]
[1731829042743,0.072856,90553.0,90552.0,0.0157856]
[1731829043428,0.000856,90553.0,90552.0,0.12034827]
[1731829043636,0.000856,90553.0,90552.0,0.110433]
[1731829043856,0.000856,90553.0,90552.0,0.1262154]
[1731829047540,0.000856,90553.0,90552.0,0.17071238]
[1731829050001,0.000856,90553.0,90552.0,0.0157824]
[1731829050208,0.000856,90553.0,90552.0,0.11630333]
[1731829050486,0.000856,90553.0,90552.0,0.12621165]
[1731829050690,0.000856,90553.0,90552.0,0.01577865]
[1731829050893,0.000856,90553.0,90552.0,0.12621165]
[1731829053683,0.000856,90553.0,90552.0,0.12621576]
[1731829054985,0.000856,90553.0,90552.0,0.12605966]
[1731829055638,0.000856,90553.0,90552.0,0.11614723]
[1731829057373,0.227134,90561.0,90552.0,0.00571423]
[1731829057591,0.227134,90561.0,90555.0,0.110429]
[1731829058027,0.227134,90561.0,90556.0,0.00584418]
[1731829058684,0.110424,90560.0,90556.0,0.00584418]
[1731829059536,0.116712,90561.0,90556.0,0.11627218]
[1731829059537,0.227135,90561.0,90556.0,0.11627218]
[1731829060650,0.227135,90561.0,90557.0,0.00992282]
[1731829060865,0.227135,90561.0,90558.0,0.00992282]
[1731829061076,0.116712,90561.0,90559.0,0.00992282]
[1731829061286,0.116712,90561.0,90560.0,0.00992282]
[1731829061490,0.116712,90561.0,90560.0,0.01576229]
[1731829062126,0.116712,90561.0,90560.0,0.00992282]
[1731829062338,0.116712,90561.0,90560.0,0.01576229]
[1731829062552,0.116712,90561.0,90560.0,0.00992282]
[1731829062765,0.116712,90561.0,90560.0,0.01576229]
[1731829064772,0.38657517,90576.0,90560.0,0.09997143]
[1731829064773,0.0812,90567.0,90560.0,0.09997143]
[1731829064981,0.0812,90567.0,90563.0,0.11042]
[1731829065217,0.0812,90567.0,90563.0,0.12034282]
[1731829065432,0.0812,90567.0,90563.0,0.12618382]
[1731829065678,0.0812,90567.0,90561.0,0.09791536]
[1731829065894,0.0812,90567.0,90563.0,0.00557062]
[1731829066120,0.0812,90567.0,90563.0,0.11042]
[1731829066331,0.0812,90567.0,90563.0,0.11599062]
[1731829066552,0.1300124,90574.0,90563.0,0.11599062]
[1731829066773,0.1300124,90574.0,90563.0,0.11819876]
[1731829067028,0.1300124,90574.0,90563.0,0.15816018]
[1731829068576,0.1300124,90574.0,90563.0,0.18116018]
[1731829070153,0.0829124,90574.0,90563.0,0.38801459]
[1731829070378,0.0017124,90574.0,90563.0,0.39301459]
[1731829072568,0.16576417,90575.0,90563.0,0.39301459]
[1731829072809,0.16118917,90575.0,90574.0,0.110406]
[1731829073269,0.0008561,90578.0,90577.0,0.110403]
[1731829073699,0.1112591,90578.0,90572.0,0.110408]
[1731829073916,0.0008561,90578.0,90577.0,0.00553401]
[1731829074132,0.0008561,90578.0,90572.0,0.023]
[1731829074377,0.1112581,90578.0,90573.0,0.110407]
[1731829074598,0.0454,90575.0,90573.0,0.00553347]
[1731829074810,0.232206,90574.0,90573.0,0.00553347]
[1731829075015,0.0764,90567.0,90562.0,0.023]
[1731829075219,0.0764,90567.0,90564.0,0.110418]
[1731829075421,0.0764,90567.0,90565.0,0.110417]
[1731829075629,0.0764,90567.0,90565.0,0.11594919]
[1731829075885,0.0764,90567.0,90565.0,0.00553219]
[1731829076099,0.155816,90566.0,90565.0,0.00553219]
[1731829076313,0.0454,90566.0,90562.0,0.04595763]
[1731829076540,0.11042,90563.0,90562.0,0.04595763]
[1731829076758,0.0454,90566.0,90563.0,0.00553262]
[1731829076981,0.11042,90563.0,90562.0,0.00553177]
[1731829077215,0.11042,90563.0,90558.0,0.1]
[1731829077429,0.110422,90562.0,90558.0,0.1]
[1731829077659,0.110425,90559.0,90553.0,0.1]
[1731829077876,0.0764,90560.0,90552.0,0.1017118]
[1731829077877,0.110428,90557.0,90552.0,0.1017118]
[1731829078102,0.110428,90557.0,90552.0,0.2121448]
[1731829078943,0.0454,90558.0,90553.0,0.110432]
[1731829079146,0.0454,90558.0,90554.0,0.1]
[1731829079679,0.11043,90555.0,90552.0,0.0017118]
[1731829079912,0.16576417,90560.0,90552.0,0.0017118]
[1731829079913,0.110432,90553.0,90552.0,0.0017118]
[1731829080126,0.232232,90553.0,90552.0,0.0017118]
[1731829081180,0.237232,90553.0,90552.0,0.0017118]
[1731829081447,0.32144114,90553.0,90552.0,0.0017118]
[1731829082208,0.237232,90553.0,90552.0,0.0017118]
[1731829087534,0.229232,90553.0,90552.0,0.0017118]
[1731829090379,0.33829455,90553.0,90552.0,0.0017118]
[1731829091819,0.38347001,90553.0,90552.0,0.0017118]
[1731829093737,0.33829455,90553.0,90552.0,0.0017118]
[1731829102416,0.33029455,90553.0,90552.0,0.0017118]
[1731829104785,0.33115065,90553.0,90552.0,0.0017118]
[1731829108379,0.33615065,90553.0,90552.0,0.0017118]
[1731829111685,0.43615065,90553.0,90552.0,0.0017118]
[1731829111905,0.52235979,90553.0,90552.0,0.0017118]
[1731829112134,1.07375979,90553.0,90552.0,0.0017118]
[1731829112644,1.10807913,90553.0,90552.0,0.0017118]
[1731829117471,1.10007913,90553.0,90552.0,0.0017118]
[1731829119756,1.19867205,90553.0,90552.0,0.0017118]
[1731829120659,1.24796851,90553.0,90552.0,0.0017118]
[1731829120888,1.19875867,90553.0,90552.0,0.0017118]
[1731829121331,1.19875867,90553.0,90519.0,0.10777504]
[1731829121332,0.110472,90520.0,90519.0,0.10777504]
[1731829121814,0.110474,90519.0,90512.0,0.110482]
[1731829124119,0.110468,90524.0,90517.0,0.110475]
[1731829124329,0.11047,90523.0,90517.0,0.110475]
[1731829124548,0.110471,90522.0,90519.0,0.0455]
[1731829124770,0.11047,90522.0,90519.0,0.0455]
[1731829125230,0.110472,90521.0,90519.0,0.0455]
[1731829125444,0.110472,90521.0,90519.0,0.1146]
[1731829127001,0.11047,90522.0,90519.0,0.1146]
[1731829127422,0.220928,90527.0,90519.0,0.1146]
[1731829127423,0.110471,90521.0,90519.0,0.1146]
[1731829129629,0.220935,90524.0,90519.0,0.1146]
[1731829129817,0.16576417,90530.0,90519.0,0.1146]
[1731829130069,0.110468,90524.0,90519.0,0.1146]
[1731829130296,0.110469,90523.0,90519.0,0.1146]
[1731829130558,0.220926,90528.0,90519.0,0.1146]
[1731829130839,0.16576417,90530.0,90519.0,0.1146]
[1731829131040,0.16576417,90530.0,90519.0,0.0455]
[1731829131498,0.110471,90521.0,90519.0,0.0455]
[1731829131728,0.220937,90524.0,90514.0,0.0496]
[1731829131959,0.220923,90529.0,90514.0,0.0496]
[1731829131960,0.110473,90520.0,90514.0,0.0496]
[1731829132172,0.220938,90523.0,90514.0,0.0496]
[1731829132173,0.110474,90519.0,90514.0,0.0496]
[1731829132398,0.102472,90521.0,90519.0,0.00485814]
[1731829132628,0.102472,90521.0,90515.0,0.110478]
[1731829132892,0.102472,90521.0,90520.0,0.00485814]
[1731829133099,0.102472,90521.0,90519.0,0.0048585]
[1731829133343,0.102472,90521.0,90520.0,0.00485814]
[1731829133764,0.102472,90521.0,90516.0,0.110477]
[1731829133984,0.102472,90521.0,90520.0,0.00485986]
[1731829134196,0.102472,90521.0,90519.0,0.00486022]
[1731829134408,0.102472,90521.0,90520.0,0.00485986]
[1731829134840,0.110469,90523.0,90516.0,0.110477]
[1731829135058,0.110469,90523.0,90520.0,0.00485986]
[1731829135282,0.11047,90522.0,90519.0,0.00486094]
[1731829135498,0.11047,90522.0,90521.0,0.00486022]
[1731829135725,0.11047,90522.0,90516.0,0.110476]
[1731829135950,0.005,90532.0,90519.0,0.133473]
[1731829136164,0.110467,90525.0,90519.0,0.13833358]
[1731829136630,0.60760617,90530.0,90519.0,0.13833358]
[1731829136631,0.110465,90526.0,90521.0,0.023]
[1731829137120,0.110468,90524.0,90522.0,0.00486094]
[1731829137596,0.110468,90524.0,90520.0,0.023]
[1731829137815,0.110468,90524.0,90523.0,0.00485986]
[1731829138034,0.38668517,90530.0,90519.0,0.023]
[1731829138266,0.38668517,90530.0,90520.0,0.110472]
[1731829138267,0.110466,90526.0,90520.0,0.110472]
[1731829138534,0.110466,90525.0,90521.0,0.023]
[1731829138755,0.110468,90524.0,90521.0,0.023]
[1731829138984,0.110468,90524.0,90522.0,0.00486058]
[1731829139210,0.220928,90527.0,90523.0,0.00990121]
[1731829139497,0.110466,90525.0,90524.0,0.00990121]
[1731829139979,0.110466,90525.0,90524.0,0.0147614]
[1731829140215,0.110466,90525.0,90524.0,0.00990121]
[1731829140459,0.110466,90525.0,90524.0,0.01475977]
[1731829140931,0.110466,90525.0,90524.0,0.00990121]
[1731829141584,0.220928,90527.0,90524.0,0.00485954]
[1731829141585,0.110465,90526.0,90524.0,0.00485954]
[1731829141799,0.220928,90527.0,90524.0,0.00990827]
[1731829142058,0.110465,90526.0,90525.0,0.01476813]
[1731829142556,0.110465,90526.0,90525.0,0.00990827]
[1731829146647,0.110465,90526.0,90525.0,0.00990861]
[1731829147608,0.102465,90526.0,90525.0,0.00990861]
[1731829150752,0.005,90532.0,90519.0,0.023]
[1731829151027,0.110468,90524.0,90520.0,0.0099092]
[1731829151216,0.110468,90524.0,90521.0,0.023]
[1731829151463,0.110468,90524.0,90521.0,0.0329092]
[1731829151703,0.110468,90524.0,90522.0,0.01476966]
[1731829151906,0.110468,90524.0,90523.0,0.0099092]
[1731829153544,0.110468,90524.0,90523.0,0.01458264]
[1731829154009,0.110468,90524.0,90523.0,0.0099092]
[1731829154228,0.110468,90524.0,90521.0,0.023]
[1731829154452,0.110469,90523.0,90520.0,0.023]
[1731829154678,0.2217884,90526.0,90522.0,0.00506363]
[1731829154932,0.110468,90524.0,90520.0,0.023]
[1731829155146,0.110468,90524.0,90523.0,0.00506402]
[1731829155365,0.110468,90524.0,90520.0,0.023]
[1731829155366,0.110469,90523.0,90520.0,0.023]
[1731829157571,0.110469,90523.0,90520.0,0.12233009]
[1731829158283,0.0008564,90526.0,90520.0,0.12233009]
[1731829158500,0.110469,90523.0,90520.0,0.12233009]
[1731829161858,0.0008564,90526.0,90520.0,0.23280209]
[1731829162567,0.102466,90525.0,90520.0,0.133472]
[1731829163458,0.0008564,90526.0,90525.0,0.133466]
[1731829163892,0.0008564,90526.0,90525.0,0.13852876]
[1731829165031,0.0008564,90526.0,90525.0,0.23790222]
[1731829165481,0.0008564,90526.0,90525.0,0.13852876]
[1731829165696,0.0008564,90526.0,90525.0,0.23789014]
[1731829165916,0.0008564,90526.0,90525.0,0.29748148]
[1731829166353,0.0008564,90526.0,90525.0,0.14843941]
[1731829167255,0.0008564,90526.0,90525.0,0.15064844]
[1731829167469,0.0008564,90526.0,90525.0,0.14843941]
[1731829168340,0.0008564,90526.0,90525.0,0.29739901]
[1731829168563,0.0008564,90526.0,90525.0,0.14843941]
[1731829170269,0.0008564,90526.0,90525.0,0.25750196]
[1731829171866,0.0008564,90526.0,90525.0,0.40638481]
[1731829172574,0.0008564,90526.0,90525.0,0.25750196]
[1731829173253,0.0008564,90526.0,90525.0,0.40635359]
[1731829173703,0.0008564,90526.0,90525.0,0.25750196]
[1731829174167,0.0008564,90526.0,90525.0,0.45611169]
[1731829174377,0.0008564,90526.0,90525.0,0.25750196]
[1731829174598,0.0008564,90526.0,90525.0,0.4063343]
[1731829174825,0.0008564,90526.0,90525.0,0.35672507]
[1731829175064,0.0008564,90526.0,90525.0,0.25750196]
[1731829175744,0.0008564,90526.0,90525.0,0.24759131]
[1731829177478,0.0757,90531.0,90525.0,0.24759131]
[1731829177479,0.0685564,90531.0,90529.0,0.11046]
[1731829177670,0.0685564,90531.0,90530.0,0.11046]
[1731829177989,0.0685564,90531.0,90530.0,0.13890809]
[1731829178765,4.198e-05,90534.0,90533.0,0.110456]
[1731829178982,4.198e-05,90534.0,90533.0,0.14334752]
[1731829179195,4.198e-05,90534.0,90533.0,0.14555643]
[1731829179420,4.198e-05,90534.0,90533.0,0.15100718]
[1731829180081,4.198e-05,90534.0,90533.0,0.14879827]
[1731829180958,4.198e-05,90534.0,90533.0,0.13890675]
[1731829181177,4.198e-05,90534.0,90533.0,0.14879772]
[1731829181624,4.198e-05,90534.0,90533.0,0.13890675]
[1731829182095,4.198e-05,90534.0,90533.0,0.2479693]
[1731829182307,4.198e-05,90534.0,90533.0,0.44096388]
[1731829182553,4.198e-05,90534.0,90533.0,0.29213983]
[1731829182794,4.198e-05,90534.0,90533.0,0.44088159]
[1731829183247,4.198e-05,90534.0,90533.0,0.29213983]
[1731829184108,4.198e-05,90534.0,90533.0,0.39128696]
[1731829184324,4.198e-05,90534.0,90533.0,0.29213983]
[1731829184773,4.198e-05,90534.0,90533.0,0.39128696]
[1731829185436,4.198e-05,90534.0,90533.0,0.14039419]
[1731829185894,4.198e-05,90534.0,90533.0,0.25085019]
[1731829186760,4.198e-05,90534.0,90533.0,0.35085019]
[1731829186988,4.198e-05,90534.0,90533.0,0.39865019]
[1731829187410,4.198e-05,90534.0,90533.0,0.40365019]
[1731829187622,4.198e-05,90534.0,90533.0,0.50279732]
[1731829187876,4.198e-05,90534.0,90533.0,0.40365019]
[1731829188119,4.198e-05,90534.0,90533.0,0.55812512]
[1731829188399,0.00175458,90534.0,90533.0,0.55612512]
[1731829188839,0.00175458,90534.0,90533.0,0.56601218]
[1731829189295,0.00175458,90534.0,90533.0,0.81356314]
[1731829190180,0.00175458,90534.0,90533.0,0.56601218]
[1731829191058,0.00175458,90534.0,90533.0,0.69574301]
[1731829191273,0.0761,90546.0,90545.0,0.110442]
[1731829191274,0.07360569,90546.0,90545.0,0.110442]
[1731829191487,0.07360569,90546.0,90545.0,0.3045382]
[1731829191706,0.07360569,90546.0,90545.0,0.29980978]
[1731829192390,0.06560569,90546.0,90545.0,0.29980978]
[1731829193781,0.06560569,90546.0,90545.0,0.10515864]
[1731829194004,0.06560569,90546.0,90545.0,0.00515864]
[1731829194226,0.06560569,90546.0,90545.0,0.10515864]
[1731829195150,0.06560569,90546.0,90545.0,0.11560064]
[1731829195571,0.06560569,90546.0,90545.0,0.21560064]
[1731829196654,0.06560569,90546.0,90545.0,0.29980978]
[1731829198148,0.06560569,90546.0,90545.0,0.34425721]
[1731829202631,0.0761,90552.0,90549.0,0.110436]
[1731829202838,0.0761,90552.0,90547.0,0.220878]
[1731829203057,0.0761,90552.0,90548.0,0.110438]
[1731829203281,0.0761,90552.0,90550.0,0.00514959]
[1731829203536,0.0761,90552.0,90549.0,0.00514708]
[1731829203738,0.0761,90552.0,90551.0,0.00514623]
[1731829203981,0.0761,90552.0,90550.0,0.00514666]
[1731829204187,0.0761,90552.0,90551.0,0.00514623]
[1731829204601,0.0761,90552.0,90549.0,0.110436]
[1731829204809,0.0761,90552.0,90551.0,0.00514623]
[1731829205043,0.0761,90552.0,90550.0,0.00514666]
[1731829205286,0.0761,90552.0,90546.0,0.1]
[1731829205526,0.110437,90549.0,90546.0,0.1]
[1731829205738,0.0761,90552.0,90546.0,0.1]
[1731829205970,0.110437,90550.0,90546.0,0.1]
[1731829206415,0.110435,90551.0,90546.0,0.21044]
[1731829207261,0.0761,90552.0,90545.0,0.04444743]
[1731829207262,0.110436,90550.0,90545.0,0.25488943]
[1731829207471,0.102436,90550.0,90545.0,0.25488943]
[1731829207716,0.22087,90551.0,90544.0,0.18420914]
[1731829207931,0.0761,90552.0,90544.0,0.18420914]
[1731829207932,0.0761,90552.0,90545.0,0.1]
[1731829208158,0.110445,90543.0,90538.0,0.11045]
[1731829208372,0.1247,90542.0,90538.0,0.11045]
[1731829208580,0.1247,90542.0,90533.0,0.06974054]
[1731829208581,0.1247,90542.0,90539.0,0.00515729]
[1731829208794,0.1247,90542.0,90537.0,0.04593215]
[1731829208795,0.235146,90542.0,90537.0,0.04593215]
[1731829209034,0.235146,90542.0,90533.0,0.06974054]
[1731829209246,0.235146,90542.0,90538.0,0.00515729]
[1731829209527,0.110447,90541.0,90536.0,0.110453]
[1731829209730,0.110447,90541.0,90539.0,0.00515686]
[1731829209975,0.110447,90541.0,90536.0,0.110453]
[1731829210254,0.110447,90541.0,90540.0,0.00515601]
[1731829210465,0.110447,90541.0,90534.0,0.1]
[1731829210466,0.110452,90537.0,90534.0,0.1]
[1731829210723,0.220895,90541.0,90534.0,0.1]
[1731829210724,0.220896,90540.0,90534.0,0.1]
[1731829210946,0.1247,90542.0,90534.0,0.1]
[1731829210947,0.110452,90537.0,90534.0,0.1]
[1731829211383,0.220899,90539.0,90534.0,0.1]
[1731829211613,0.110451,90538.0,90533.0,0.14622283]
[1731829212049,0.220899,90539.0,90533.0,0.14622283]
[1731829212262,0.110452,90537.0,90533.0,0.14622283]
[1731829212719,0.110452,90537.0,90533.0,0.04622283]
[1731829212935,0.1247,90542.0,90534.0,0.1]
[1731829213154,0.1247,90542.0,90533.0,0.13043197]
[1731829213155,0.1247,90542.0,90538.0,0.08420914]
[1731829213376,0.005,90556.0,90547.0,0.110439]
[1731829213377,0.1298,90551.0,90547.0,0.110439]
[1731829213594,0.16576417,90549.0,90547.0,0.110439]
[1731829213808,0.16576417,90549.0,90545.0,0.110441]
[1731829214072,0.350671,90551.0,90544.0,0.08420914]
[1731829214264,0.110437,90549.0,90544.0,0.08420914]
[1731829215136,0.0008561,90546.0,90544.0,0.08420914]
[1731829215376,0.0008561,90546.0,90545.0,0.110442]
[1731829216764,0.0008561,90546.0,90545.0,0.11265062]
[1731829217427,0.0008561,90546.0,90545.0,0.22171317]
[1731829217646,0.0008561,90546.0,90545.0,0.21950455]
[1731829219884,0.0008561,90546.0,90545.0,0.34471303]
[1731829220118,0.0008561,90546.0,90545.0,0.44162649]
[1731829220672,0.0008561,90546.0,90545.0,0.49618746]
[1731829220887,0.0008561,90546.0,90545.0,0.58366461]
[1731829221096,0.0008561,90546.0,90545.0,0.54574843]
[1731829221314,0.0008561,90546.0,90545.0,0.54574847]
[1731829222422,0.0739122,90561.0,90560.0,0.110424]
[1731829223556,0.0739122,90561.0,90560.0,0.1155766]
[1731829228405,0.0747683,90561.0,90560.0,0.1155766]
[1731829228635,0.0008561,90561.0,90560.0,0.1155766]
[1731829229751,0.0008561,90561.0,90560.0,0.16103836]
[1731829234488,0.0008561,90561.0,90560.0,0.2632466]
[1731829235340,0.0008561,90561.0,90560.0,0.36236472]
[1731829235547,0.0008561,90561.0,90560.0,0.36015648]
[1731829236866,0.0008561,90561.0,90560.0,0.49221903]
[1731829237544,0.0008558,90564.0,90560.0,0.49221903]
[1731829237545,0.0425119,90572.0,90571.0,0.11041]
[1731829237975,0.0425119,90572.0,90571.0,0.11605696]
[1731829240126,0.0425119,90572.0,90571.0,0.12593465]
[1731829242726,0.0425119,90572.0,90571.0,0.01552465]
[1731829242727,0.1217119,90572.0,90571.0,0.01552465]
[1731829243346,0.1217119,90572.0,90571.0,0.12593465]
[1731829244026,0.1217119,90572.0,90571.0,0.01552465]
[1731829244667,0.1217119,90572.0,90571.0,0.12593465]
[1731829245413,0.1217119,90572.0,90571.0,0.01552465]
[1731829245874,0.0008557,90575.0,90571.0,0.09973379]
[1731829246124,0.0008557,90575.0,90574.0,0.110406]
[1731829246353,0.0008557,90575.0,90574.0,0.12028369]
[1731829246586,0.0008557,90575.0,90574.0,0.12592512]
[1731829249232,0.0008557,90575.0,90574.0,0.14174478]
[1731829249456,0.0008557,90575.0,90574.0,0.14175173]
[1731829252009,0.0008557,90575.0,90574.0,0.25302225]
[1731829252226,0.0008557,90575.0,90574.0,0.25081428]
[1731829252467,0.071668,90584.0,90583.0,0.110395]
[1731829252685,0.071668,90584.0,90583.0,0.19460414]
[1731829252940,0.071668,90584.0,90583.0,0.22592409]
[1731829253824,0.0489,90590.0,90589.0,0.110388]
[1731829254036,0.0489,90590.0,90589.0,0.2202945]
[1731829254248,0.0489,90590.0,90589.0,0.22592225]
[1731829255399,0.049756,90602.0,90590.0,0.110387]
[1731829255620,0.0771,90598.0,90590.0,0.13608436]
[1731829256112,0.0771,90598.0,90590.0,0.14171211]
[1731829256365,0.0771,90598.0,90590.0,0.12589785]
[1731829257213,0.0771,90598.0,90590.0,0.14169387]
[1731829259219,0.0771,90598.0,90590.0,0.14166897]
[1731829260276,0.0771,90598.0,90590.0,0.12588126]
[1731829260951,0.0771,90598.0,90590.0,0.19998592]
[1731829264007,0.0771,90598.0,90590.0,0.33204847]
[1731829264835,0.0771,90598.0,90590.0,0.33376047]
[1731829266514,0.049756,90602.0,90590.0,0.37107982]
[1731829266725,0.049756,90602.0,90590.0,0.37307982]
[1731829267546,0.0426121,90602.0,90599.0,0.08420914]
[1731829267754,0.0426121,90602.0,90599.0,0.19458414]
[1731829267966,0.0426121,90602.0,90600.0,0.11573981]
[1731829269120,0.0827,90603.0,90600.0,0.00536581]
[1731829269360,0.005,90606.0,90605.0,0.110369]
[1731829269589,0.005,90606.0,90600.0,0.25806935]
[1731829269804,0.005,90606.0,90605.0,0.00536543]
[1731829270043,0.0851,90608.0,90607.0,0.110366]
[1731829270245,0.0801,90608.0,90607.0,0.110366]
[1731829270516,0.0801,90608.0,90607.0,0.15305078]
[1731829270744,0.0498,90611.0,90607.0,0.15305078]
[1731829270745,0.0498,90611.0,90610.0,0.110363]
[1731829270981,0.0498,90611.0,90610.0,0.21031253]
[1731829271224,0.0498,90611.0,90610.0,0.09994953]
[1731829271435,0.0498,90611.0,90610.0,0.02110582]
[1731829271864,0.160161,90611.0,90610.0,0.02110582]
[1731829272079,0.0498,90611.0,90610.0,0.02110582]
[1731829272511,0.1299,90611.0,90601.0,0.01574039]
[1731829272750,0.110374,90601.0,90597.0,0.1]
[1731829272953,0.110374,90601.0,90598.0,0.02557936]
[1731829273174,0.1299,90602.0,90599.0,0.02557936]
[1731829273383,0.1299,90602.0,90591.0,0.32983255]
[1731829273384,0.240273,90602.0,90600.0,0.02557936]
[1731829273595,0.240273,90602.0,90601.0,0.02557936]
[1731829277401,0.241129,90602.0,90601.0,0.02557936]
[1731829277640,0.000856,90602.0,90601.0,0.110374]
[1731829277887,0.000856,90602.0,90601.0,0.24504972]
[1731829278615,0.000856,90602.0,90601.0,0.13598717]
[1731829279234,0.000856,90602.0,90601.0,0.27025697]
[1731829279666,0.000856,90602.0,90601.0,0.31434256]
[1731829279902,0.000856,90602.0,90601.0,0.31213531]
[1731829280971,0.000856,90602.0,90601.0,0.31215159]
[1731829282566,0.072956,90609.0,90607.0,0.110366]
[1731829282774,0.072956,90609.0,90608.0,0.13599445]
[1731829282989,0.072956,90609.0,90608.0,0.02562945]
[1731829283579,0.072956,90609.0,90608.0,0.14135106]
[1731829286407,0.0809565,90616.0,90612.0,0.11036]
[1731829286649,0.0809565,90616.0,90612.0,0.13598945]
[1731829286882,0.0809565,90616.0,90612.0,0.14134504]
[1731829287602,0.0809565,90616.0,90612.0,0.14136017]
[1731829289246,0.0809565,90616.0,90612.0,0.12557839]
[1731829290200,0.0809565,90616.0,90612.0,0.01521839]
[1731829290868,0.0809565,90616.0,90612.0,0.12557839]
[1731829293579,0.0809565,90616.0,90612.0,0.17109361]
[1731829295256,0.0809565,90616.0,90612.0,0.18681064]
[1731829296287,0.0809565,90616.0,90612.0,0.06073361]
[1731829296714,0.0809565,90616.0,90612.0,0.17109361]
[1731829297376,0.0738125,90616.0,90613.0,0.110358]
[1731829297581,0.0738125,90616.0,90614.0,0.00982345]
[1731829297790,0.0738125,90616.0,90615.0,0.00982345]
[1731829298007,0.0738125,90616.0,90615.0,0.01516799]
[1731829298426,0.0738125,90616.0,90615.0,0.03088211]
[1731829299504,0.0738125,90616.0,90615.0,0.14123911]
[1731829301054,0.0738125,90616.0,90615.0,0.14123778]
[1731829302136,0.0738125,90616.0,90615.0,0.03088078]
[1731829302773,0.0746683,90616.0,90615.0,0.03088078]
[1731829305449,0.0746683,90616.0,90609.0,0.2224386]
[1731829305661,0.0746683,90616.0,90615.0,0.00512536]
[1731829305869,0.0746683,90616.0,90614.0,0.023]
[1731829306098,0.0746683,90616.0,90615.0,0.00512536]
[1731829306535,0.0746683,90616.0,90613.0,0.023]
[1731829306750,0.0746683,90616.0,90615.0,0.00512502]
[1731829306930,0.0746683,90616.0,90612.0,0.11036]
[1731829307191,0.0746683,90616.0,90615.0,0.00512502]
[1731829307394,0.0746683,90616.0,90613.0,0.023]